Cogmind - Beta 14 @@@ ROGUE MODE // 2024.11.21 @ 17:47:07 Player: N.W.L Result: Destroyed by as-60563 with Assembled Rifle Performance ------------- Evolutions (0) 0 Regions Visited (2) 400 Robots Destroyed (31) 155 Value Destroyed (467) 467 Prototype IDs (0) 0 Alien Tech Used (0) 0 Bonus (0) 0 TOTAL SCORE: 1022 Bonus ------- None Cogmind --------- Core Integrity 0/250 Matter 85/300 Energy 25/250 System Corruption 1% Temperature Cool (0) Movement Treading (320) Ox2 Location -10/Mines Parts ------- > --- POWER (1) -------- Ion Engine > --- PROPULSION (2) --- Light Treads > --- UTILITY (2) ------ High-capacity Storage Unit > --- WEAPON (2) ------- Mini Grenade Launcher > --- INVENTORY (20) --- Seismic Detector Shield Generator Shield Generator Shield Generator Heavy Assault Rifle Rocket Launcher Rocket Launcher Mini Grenade Launcher Plasma Cutter Peak State ------------ > --- POWER ------------ Ion Engine > --- PROPULSION ------- Light Treads Light Treads > --- UTILITY ---------- High-capacity Storage Unit Shield Generator > --- WEAPON ----------- Heavy Assault Rifle Heavy Assault Rifle > --- INVENTORY -------- Ion Engine Light Treads Seismic Detector Shield Generator Shield Generator Shield Generator Heavy Assault Rifle Heavy Assault Rifle Rocket Launcher Rocket Launcher Mini Grenade Launcher Mini Grenade Launcher Mining Laser Plasma Cutter [Rating: 12] Favorites ----------- Power Ion Engine Engine Ion Engine Propulsion Light Treads Treads Light Treads Utility Seismic Detector Device Seismic Detector Storage High-capacity Storage Unit Weapon Heavy Assault Rifle Energy Gun Medium Laser Ballistic Gun Heavy Assault Rifle Launcher Rocket Launcher Special Weapon Mining Laser Build | -11 -10 -10 ------- Run | Yrd Mat Min Slots Evolved . | . . . Power . | . . . Propulsion . | . . . Utility . | . . . Weapon . | . . . Parts Attached 26 | 7 7 12 Power 2 | 1 . 1 Engine 2 | 1 . 1 Core . | . . . Reactor . | . . . Propulsion 4 | 2 . 2 Treads 4 | 2 . 2 Leg . | . . . Wheel . | . . . Hover . | . . . Flight . | . . . Utility 6 | 2 1 3 Device 4 | 1 . 3 Storage 2 | 1 1 . Processor . | . . . Hackware . | . . . Protection . | . . . Artifact . | . . . Weapon 14 | 2 6 6 Energy Gun 1 | 1 . . Energy Cannon . | . . . Ballistic Gun 8 | 1 4 3 Ballistic Cannon . | . . . Launcher 4 | . 2 2 Special Weapon 1 | . . 1 Impact Weapon . | . . . Slashing Weapon . | . . . Piercing Weapon . | . . . Special Melee Weapon . | . . . Unidentified Prototypes . | . . . Parts Lost 9 | . . 9 Power 1 | . . 1 Propulsion 3 | . . 3 Utility 1 | . . 1 Weapon 4 | . . 4 Highest Loss Streak 8 | . . 8 To Critical Strikes . | . . . Average Slot Usage (%) 99 | . 100 90 Engine 13 | . 14 12 Treads 27 | . 28 23 Device 13 | . 14 12 Storage 14 | . 14 14 Ballistic Gun 24 | . 25 18 Launcher 2 | . 2 3 Peak Build Rating 12 | 7 11 12 Average Rating 9 | 5 10 10 On Entrance 6 | . 7 11 Naked Turns . | . . . Heaviest Build 53 | 15 53 53 Greatest Support 40 | 40 40 40 Greatest Overweight (x) 2 | . 1 2 Average Overweight (x) . | . . 1 Largest Inventory Capacity 20 | 8 20 20 Average Capacity 17 | 7 18 20 Most Carried 15 | 3 15 15 Average Carried 9 | 1 9 13 Final Capacity 20 | 8 20 20 Final Carried 15 | 3 15 9 Class Distribution -------------------- 100% | Mutant Dominant Class ---------------- Mutant | -10/Materials Mutant | -10/Mines Resources | -11 -10 -10 ----------- Run | Yrd Mat Min Matter Collected 615 | 284 331 . Remotely . | . . . Salvage Created 773 | 77 644 52 Parts 56 | 6 49 1 Haulers Intercepted 2 | . 2 . Recyclers Shooed 2 | 1 1 . Parts Field Recycled . | . . . Retrieved Matter . | . . . Parts Self-Destructed . | . . . Prevented . | . . . Kills | -11 -10 -10 ------- Run | Yrd Mat Min Combat Hostiles Destroyed 16 | . 13 3 Guns 8 | . 7 1 AOE 8 | . 6 2 Classes Destroyed 10 | 2 7 1 Worker 2 | . 2 . Builder 3 | . 3 . Tunneler 1 | 1 . . Hauler 2 | . 2 . Recycler 3 | 1 2 . Mechanic 1 | . 1 . Watcher 3 | . 3 . Swarmer 9 | . 9 . Grunt 6 | . 4 2 Demolisher 1 | . . 1 Best Kill Streak 5 | 2 5 2 Combat Bots Only 3 | . 3 2 Max Kills in Single Turn 3 | 1 3 1 Gunslinging . | . . . Exploded 3 | . 3 1 Melee . | . . . Uniques/NPCs Destroyed . | . . . Combat | -11 -10 -10 -------- Run | Yrd Mat Min Hostile Shots Fired 85 | . 52 33 Missed 13 | . 7 6 Damage Taken 1351 | . 453 898 Core 255 | . 83 172 Absorbed by Shields 22 | . . 22 Core Remaining (%) 100 | 100 . . Volleys Fired 70 | 7 52 11 Largest 2 | 2 2 2 Hottest 100 | 70 70 100 Shots Fired 129 | 14 99 16 Gun 118 | 14 94 10 Cannon . | . . . Launcher 8 | . 5 3 Special 3 | . . 3 Kinetic 110 | 7 93 10 Thermal 11 | 7 1 3 Explosive 8 | . 5 3 Electromagnetic . | . . . Robot Hit Streak 10 | 3 10 7 Robot Miss Streak 6 | 3 6 1 Penetration Max . | . . . Secondary Targets . | . . . Shots Hit Robots 74 | 7 58 9 Core Hits 42 | 2 31 9 Critical Kills . | . . . Critical Parts Destroyed . | . . . Critical Strikes . | . . . Melee Attacks . | . . . Impact . | . . . Slashing . | . . . Piercing . | . . . Sneak Attacks . | . . . Combat Hostiles . | . . . Follow-up Attacks . | . . . Damage Inflicted 1648 | 95 1314 239 Guns 1108 | 95 880 133 Cannons . | . . . Explosions 540 | . 434 106 Melee . | . . . Ramming . | . . . Kinetic 1070 | 70 867 133 Thermal 38 | 25 13 . Explosive 540 | . 434 106 Electromagnetic . | . . . Impact . | . . . Slashing . | . . . Piercing . | . . . Highest Corruption 1 | . 1 1 Average Corruption 1 | . 1 1 Corruption Purged . | . . . Corruption Blocked . | . . . Effects 3 | . 2 1 Message Errors 1 | . 1 . Heat Flow Errors 1 | . 1 . Data Loss (major) 1 | . . 1 Overload Shots . | . . . Overflow Damage 33 | . 28 5 Projectiles . | . . . Explosions 33 | . 28 5 Melee . | . . . Knockbacks . | . . . Impact . | . . . Kinetic . | . . . Secondary . | . . . Self-Inflicted Damage 57 | . 31 26 Shots 2 | . 1 1 Rammed . | . . . Targets Rammed . | . . . Kicked . | . . . Crushed . | . . . Highest Temperature 233 | 63 233 40 Average Temperature 46 | 32 67 15 Received Heat Transfer 186 | . 120 66 Siege Activations . | . . . Robots Corrupted . | . . . Combat Hostiles . | . . . Parts Fried . | . . . Impact Corruptions . | . . . Robots Melted . | . . . Combat Hostiles . | . . . Parts Melted . | . . . Heat Transferred 111 | 74 37 . Parts Sabotaged . | . . . Parts Stolen . | . . . Parts Stripped . | . . . Power Chain Reactions . | . . . Alert | -11 -10 -10 ------- Run | Yrd Mat Min Peak Influence 226 | 10 226 102 Initial 52 | . 6 52 Average 101 | 5 112 82 Maximum Alert Level 1 | . 1 . Low Security (%) 80 | 100 77 100 Level 1 19 | . 22 . Level 2 . | . . . Level 3 . | . . . Level 4 . | . . . Level 5 . | . . . High Security . | . . . Max Security . | . . . Squads Dispatched 2 | . 2 . Investigation 2 | . 2 . Extermination . | . . . Reinforcement . | . . . Assault . | . . . Garrison . | . . . Intercept . | . . . Searches Triggered . | . . . Construction Impeded . | . . . Haulers Reinforced . | . . . Active Scanning Responses . | . . . Cargo Convoy Interrupts . | . . . Stealth | -11 -10 -10 --------- Run | Yrd Mat Min Distress Signals 1 | . 1 . Communications Jammed . | . . . Distress Signals . | . . . Times Spotted 23 | . 18 5 Peak Tracking Total 3 | . 3 2 Tactical Retreats 2 | . 2 . Traps | -11 -10 -10 ------- Run | Yrd Mat Min Traps Triggered 1 | . 1 . Indirectly . | . . . Trap Hack Attempts . | . . . Triggered . | . . . Disarmed . | . . . Reprogrammed . | . . . Reused . | . . . Traps Extracted . | . . . Installed . | . . . Triggered . | . . . Machines | -11 -10 -10 ---------- Run | Yrd Mat Min Machines Disabled 1 | . 1 . Max in Single Turn 1 | . 1 . Machines Repaired . | . . . Machines Dismantled . | . . . Machines Sabotaged . | . . . Overloaded Fab Kills . | . . . Hacking | -11 -10 -10 --------- Run | Yrd Mat Min Machines Accessed 9 | . 9 . Terminals 7 | . 7 . Fabricators . | . . . Repair Stations . | . . . Recycling Units 2 | . 2 . Scanalyzers . | . . . Garrison Access . | . . . Total Hacks 29 | . 29 . Successful 15 | . 15 . Failed 14 | . 14 . Catastrophic 1 | . 1 . Database Lockouts . | . . . Manual 24 | . 24 . Terminals 22 | . 22 . Fabricators . | . . . Repair Stations . | . . . Recycling Units 7 | . 7 . Scanalyzers . | . . . Garrison Access . | . . . Terminal Hacks 4 | . 4 . Part Schematic 2 | . 2 . Robot Analysis 2 | . 2 . Fabricator Hacks . | . . . Repair Station Hacks . | . . . Recycling Unit Hacks 2 | . 2 . Retrieve Components 2 | . 2 . Scanalyzer . | . . . Garrison Access Hacks . | . . . Unauthorized Hacks 9 | . 9 . Terminals 7 | . 7 . Botnet 1 | . 1 . Operators 1 | . 1 . Skim 5 | . 5 . Fabricators . | . . . Repair Stations . | . . . Recycling Units 2 | . 2 . Tunnel 2 | . 2 . Scanalyzers . | . . . Garrison Access . | . . . Data Cores Recovered . | . . . Used . | . . . Hacking Detections 8 | . 8 . Full Trace Events . | . . . Feedback Events . | . . . Feedback Blocked . | . . . Robot Schematics Acquired . | . . . Robots Built . | . . . Authchips . | . . . Time . | . . . Total Robot Build Rating . | . . . Part Schematics Acquired 2 | . 2 . Parts Built . | . . . Authchips . | . . . Time . | . . . Total Part Build Rating . | . . . Parts Repaired . | . . . Time . | . . . Parts Recycled . | . . . Recycled Matter . | . . . Retrieved Matter . | . . . Retrieved Components 10 | . 10 . Parts Scanalyzed . | . . . Part Schematics Acquired . | . . . Parts Damaged . | . . . Bothacking | -11 -10 -10 ------------ Run | Yrd Mat Min Used RIF Installer . | . . . Robots Hacked . | . . . Non-combat . | . . . Combat . | . . . Robot Hacks Applied . | . . . Relay Couplers Released . | . . . Fabnet Peak Effective % . | . . . Robots Rewired . | . . . Allies Hacked . | . . . Hacks Repelled . | . . . Allies | -11 -10 -10 -------- Run | Yrd Mat Min Total Allies . | . . . Largest Group . | . . . Highest-Rated Group . | . . . Highest-Rated Ally . | . . . Total Orders . | . . . Ally Attacks . | . . . Total Damage . | . . . Kills . | . . . Allies Corrupted . | . . . Allies Melted . | . . . Intel | -11 -10 -10 ------- Run | Yrd Mat Min Robot Analysis Total 2 | . 2 . Derelict Logs Recovered . | . . . Drone Launches . | . . . Drone Recoveries . | . . . Exploration | -11 -10 -10 ------------- Run | Yrd Mat Min Turns Passed 1619 | 143 1395 81 Spaces Moved 565 | 72 482 11 Core 5 | 5 . . Treads 560 | 67 482 11 Legs . | . . . Wheels . | . . . Hover . | . . . Flight . | . . . Fastest Speed 50 | 50 160 240 Average Speed 217 | 152 225 254 Slowest Speed 320 | 160 240 320 Overloaded Moves . | . . . Propulsion Burnouts . | . . . Robots Hopped . | . . . Cave-ins Triggered . | . . . Exploration Rate (%) 31 | 5 84 5 Regions Visited 2 Branch Regions 1 Pre-discovered Areas 2 | . 2 . Known Exits Taken . | . . . Unknown Exits Taken 2 | 1 1 . Scrap Searched . | . . . Spaces Dug 27 | . 11 16 Terrain Destroyed 68 | . 42 26 Melee . | . . . Projectile 3 | . . 3 AOE 65 | . 42 23 Terrain Rammed . | . . . Walls Destroyed . | . . . Machines Disabled . | . . . Actions | -11 -10 -10 --------- Run | Yrd Mat Min Total 818 | 88 690 40 Wait 135 | . 129 6 Move 563 | 71 481 11 Hop . | . . . Pick Up 18 | 3 15 . Fast Attach 8 | 7 1 . Attach 6 | . . 6 Detach . | . . . Swap 12 | . 6 6 Drop 6 | . 6 . Fire 70 | 7 52 11 Melee . | . . . Ram . | . . . Kick . | . . . Crush . | . . . Escape Stasis . | . . . Rewire . | . . . Trap . | . . . Miscellaneous . | . . . Route ------- -11/Scrapyard -10/Materials (discovered 6 exits: *Mat x3 / [*Min x2] / Sub) -10/Mines (discovered 1 exit: Sub) History --------- Turn | Location | Event 3 | -11/Scrapyard | Discovered new exit (range 15) 144 | -11/Scrapyard | Entered Materials 213 | -10/Materials | Discovered new exit (range 11) 308 | -10/Materials | Build established: Mutant 468 | -10/Materials | Discovered new exit (range 8) 538 | -10/Materials | Discovered new exit (range 14) 858 | -10/Materials | Identified exit to Materials 858 | -10/Materials | Identified exit to Subcaves 895 | -10/Materials | Learned 2 Storage zone layouts 922 | -10/Materials | Learned Storage emergency access door positions 940 | -10/Materials | Learned 2 Storage zone layouts 1539 | -10/Materials | Entered Mines 1559 | -10/Mines | Assembled infested the area 1604 | -10/Mines | Core integrity fell below 50% 1610 | -10/Mines | Core integrity fell below 20% 1620 | -10/Mines | Destroyed by as-60563 with Assembled Rifle Last Messages --------------- 01597_ Hvy. Assault Rifle destroyed. 01597_ Ion Engine destroyed. 01597_ Mining Laser destroyed. 01599_ Lgt. Treads destroyed. 01599_ K-01 Serf collects debris. 01602_ The unstable cave ceiling collapses. 01603_ Lgt. Treads destroyed. 01604_ K-01 Serf collects debris. 01605_ K-01 Serf destroyed. 01606_ The unstable cave ceiling collapses. 01613_ D-53 Grenadier destroyed. 01615_ The unstable cave ceiling collapses. 01617_ Hvy. Assault Rifle destroyed. 01618_ System corrupted: Substantial component data lost. 01619_ The unstable cave ceiling collapses. 01619_ Hvy. Assault Rifle destroyed. 01619_ D-53 Grenadier destroyed. 01619_ Shield Generator destroyed. 01619_ Destroyed Shield Generator. 01620_ The unstable cave ceiling collapses. Map ----- +----------------------------------------------------+ | ????????????????????????????????????????????????? | | ????????????????????????????????????????????????? | | ????????????????????????????????????????????????? | | ????????????????????????????????????????????????? | | ????????????????????????????????????????????????? | | ????????????????????????????????????????????????? | | ????????????????????????????????????????????????? | | ????????????????????????????????????????????????? | | ????????????????????????????????????????????????? | | ????????????????????????????????????????????????? | | ????????????????????????????????????????????????? | | ????????????????????????????????????????????????? | | ????????????????????????????????????????????????? | | ????????????????????????????????????????????????? | | ?????????????????????????##?????????????????????? | | ????????????????????????? ?????????????????????? | | ?????????????????????????a#?????????????????????? | | ????????????????????????? ###???????????????????? | | ???????????????????????## # ####????????????????? | | ??????????????????????## #????????????????? | | ?????????????????????## #????????????????? | | ?????????? ??????### #????????????????? | | ???????????? ## # % #????????????????? | | ???????????????# ####?????????????? | | ???????????????# #?????????????? | | ???????????????# @ #?????????????? | | ???????????????# ### #?????????????? | | ???????????????# #??????????????????? | | ???????????????# #??????????????????? | | ???????????????# # #??????????????????? | | ???????????????## # # #??????????????????? | | ????????????????# ### #??????????????????? | | ????????????????#########??? #??????????????????? | | ???????????????????????????? #??????????????????? | | ?????????????????????????????#??????????????????? | | ????????????????????????????????????????????????? | | ????????????????????????????????????????????????? | | ????????????????????????????????????????????????? | | ????????????????????????????????????????????????? | | ????????????????????????????????????????????????? | | ????????????????????????????????????????????????? | | ????????????????????????????????????????????????? | | ????????????????????????????????????????????????? | | ????????????????????????????????????????????????? | | ????????????????????????????????????????????????? | | ????????????????????????????????????????????????? | | ????????????????????????????????????????????????? | | ????????????????????????????????????????????????? | | ????????????????????????????????????????????????? | | ????????????????????????????????????????????????? | +----------------------------------------------------+ Best States ------------- Heat Dissipation 25 Energy Generation 10 Energy Capacity 250 Matter Stores 300 Matter Capacity 300 Sight Range 16 Terrain Scan Density 10 Evasion (%) 40 Recoil Reduction 2 Item Schematics ----------------- Huge Storage Unit | -10/Materials | Hacked Cargo Storage Unit | -10/Materials | Hacked Robot Schematics ------------------ None Fabricated ------------ Nothing Alien Tech Used ----------------- None Achievements -------------- None Challenges ------------ None Game ------ Seed PointSeismicOptics Manual? 0 Play Time 00:11:10 Cumulative 396.8 hours Start 2024.11.21 @ 17:37:04 End 2024.11.21 @ 17:47:07 Sessions 1 Manual Loads 0 Difficulty Rogue Special Mode None Game No. 187 Rogue 187 Adventurer 0 Explorer 0 Win Type - Total 13 Types 8/1/4/0/0/0/0/0/0 Lore% 87 Gallery% 90 Achievement% 76 Wizard Run 0 Options --------- Layout 0 ASCII 0 Keyboard 0 Movement Mouse Keybinds 0 Fullscreen 2 Font 12/Smallcaps Map View 83x54 Zoom Use 0% Tactical HUD 1 Map Filters NONE Filters NONE Steam 1 RUN: a2af320c-8844-47af-a890-abd6e1697927